Workbook

Sheet Introduction
B3: PROFIT SENSITIVITY TO PRICES AND COSTS VARIANCES
B5: Introduction
B7: Overview
B9: Understanding the sensitivity of profit to variations of prices and costs is essential for any business. The sensitivity is determined by the indicator of profit in % of sales, also called profitability rate, and it can be measured in percentage points. This knowledge of profit can help answering many questions, to name a few: → What is the necessary price increase to guarantee the profit growth by X percentage points? Should this increase be the same for all products of a portfolio? → How will the profit of a product react to variations of costs? If material cost increases by X % for products with different profitability, will the impact on profit be the same?
B18: Read more about indicators of profit and profit sensitivity in our article: | I18: “How (Not) to Lose a Profit in 10 days”.
B20: Here we introduce our profitability calculators and tables which serve to quickly measure the impact of prices and costs variations and make necessary adjustments to secure the desired level of profit. We hope that these tools will help you in searching for profit maximization, planning sales promotions and negotiating selling conditions with your clients.
B25: Warning
B27: This Tool has been produced with care and to the best of our ability. However, FPANDA CLUB accepts no responsibility for any problems or incidents arising from its use.
B30: Credits
B32: This Tool has been developed by ©FPANDA CLUB, 2022
B34: Guidelines
B36: Sheet "Simulation"
B38: N1→ Profitability simulation (Impact of Price and Cost Variations)
B40: There are 3 options in this simulation tool: 1. Input your current profitability (gross margin in % of sales), price change in %, cost change in %. And you will get your new profitability in %. You will also see the breakdown of profitability evolution in % points due to price effect and cost effect. 2. Input your current profitability in %, cost change in %, new target profitability in %. And you will get the necessary price change in % to meet these criteria. 3. Input your current profitability in%, price change in %, new target profitability in %. And you will get the required cost change in % to meet these criteria.
B51: N2→ Profit amount simulation (Impact of Volume, Price and Cost Variations)
B53: There are 4 options in this simulation tool: 1. Input your current profitability (gross margin in % of sales), volume change in %, price change in %, cost change in %. And you will see how the amount of gross margin changes in %. You will also get your net sales change in %, your new profitability in %, and the breakdown of profitability evolution in % points due to price effect and cost effect. 2. Input your current profitability in %, price change in%, cost change in %, target change in % of gross margin amount. And you will get the necessary volume change in % to meet these criteria. 3. Input your current profitability in %, volume change in %, cost change in %, target change in % of gross margin amount. And you will get the necessary price change in % to meet these criteria. 4. Input your current profitability in %, volume change in %, price change in %, target change in % of gross margin amount. And you will get the required cost change in % to meet these criteria.
B68: N3→ Impact of Price Discounts on Profit amount and Profitability
B70: Input your current profitability (gross margin in % of sales) before discount, price discount in % (attention: it should be written 10%, not -10%, for example). You will get your new profitability in % and the volume growth in % which is necessary to compensate the price reduction. This volume growth means that during the period of promo action the amount of your gross margin remains the same as before giving a discount during the same period. Furthermore, if your target is to increase the amount of gross margin, then you can input the desired growth in % of your gross margin amount. And you will get the necessary percentage of volume increase to support this profit growth.
B77: Sheets "Price increase", "Profit growth", "Price discounts", "Volume increase", "Impact of costs"
B79: Here are the tables following the same rules of calculation as in the sheet "Simulation", but you can see multiple values for the chosen indicator. Feel free to customize parameters for your projects. In the left column you can change the current gross margin in % of sales. In the header of each table you can change the parameters of the corresponding indicator.
B85: Contact
B87: If you have any questions or comments, do not hesitate to contact us by email admin@fpandaclub.com
B88: or via our contact form on the website | F88: www.fpandaclub.com

Sheet Simulation
A1: N1→ | B1: Profitability* simulation (Impact of Price and Cost Variations)
E3: SIMULATION OF:
D4: 1 | H4: 2 | L4: 3
D5: New Profitability* in % | H5: Price change in % | L5: Cost change in %
F6: in % points of GM** | J6: in % points of GM** | N6: in % points of GM**
B7: Current Profitability* (in %) | E7: 25.0% | I7: 25.0% | M7: 25.0%
B9: Price change (in %) | E9: 3.0% | F9: =(1-E7)*(1-1/(1+E9))*100 -> +2.2 pts | I9: =(1+I11)*(1-I7)/(1-I13)-1 -> +12.5% | J9: =(1-I7)*(1-1/(1+I9))*100 -> +8.3 pts | M9: -10.0% | N9: =(1-M7)*(1-1/(1+M9))*100 -> -8.3 pts
B11: Cost change (in %) | E11: 8.0% | F11: =(1-(E7+F9/100))*-E11*100 -> -5.8 pts | I11: 5.0% | J11: =(1-(I7+J9/100))*-I11*100 -> -3.3 pts | M11: =(1+M9)*(1-M13)/(1-M7)-1 -> -4.0% | N11: =(1-(M7+N9/100))*-M11*100 -> +3.3 pts
B13: NEW Profitability* (in %) | E13: =1-(1-E7)*(1+E11)/(1+E9) -> 21.4% | F13: =SUM(F9:F11) -> -3.6 pts | I13: 30.0% | J13: =SUM(J9:J11) -> +5.0 pts | M13: 20.0% | N13: =SUM(N9:N11) -> -5.0 pts
B15: input
B16: formula
B18: * Profitability = Gross Margin in % of Net Sales
B19: ** GM = Gross Margin
A21: N2→ | B21: Profit amount simulation (Impact of Volume, Price and Cost Variations)
E23: SIMULATION OF:
D24: 1 | H24: 2 | L24: 3 | P24: 4
D25: New Profitability* in % | H25: Volume change in % | L25: Price change in % | P25: Cost change in %
F26: in % points of GM** | J26: in % points of GM** | N26: in % points of GM** | R26: in % points of GM**
B27: Current Profitability* (in %) | E27: 30.0% | I27: 30.0% | M27: 30.0% | Q27: 30.0%
B29: Volume change (in %) | E29: 5.0% | I29: =IFERROR((1+I37)*I27/((1+I31)-(1-I27)*(1+I33))-1,0) -> +28.6% | M29: 5.0% | Q29: 40.0%
B31: Price change (in %) | E31: 5.0% | F31: =(1-E27)*(1-1/(1+E31))*100 -> +3.3 pts | I31: 5.0% | J31: =(1-I27)*(1-1/(1+I31))*100 -> +3.3 pts | M31: =IFERROR((1+M37)*M27/(1+M29)+(1+M33)*(1-M27)-1,0) -> +11.9% | N31: =(1-M27)*(1-1/(1+M31))*100 -> +7.5 pts | Q31: -10.0% | R31: =(1-Q27)*(1-1/(1+Q31))*100 -> -7.8 pts
B33: Cost change (in %) | E33: 15.0% | F33: =(1-(E27+F31/100))*-E33*100 -> -10.0 pts | I33: 15.0% | J33: =(1-(I27+J31/100))*-I33*100 -> -10.0 pts | M33: 15.0% | N33: =(1-(M27+N31/100))*-M33*100 -> -9.4 pts | Q33: =IFERROR(1/(1-Q27)*(1+Q31-(1+Q37)/(1+Q29))+(1+Q37)/(1+Q29)-1,0) -> -3.6% | R33: =(1-(Q27+R31/100))*-Q33*100 -> +2.8 pts
B35: Net Sales change (in %) | E35: =IFERROR((1+E29)*(1+E31)-1,0) -> 10.3% | I35: =IFERROR((1+I29)*(1+I31)-1,0) -> 35.0% | M35: =IFERROR((1+M29)*(1+M31)-1,0) -> 17.5% | Q35: =IFERROR((1+Q29)*(1+Q31)-1,0) -> 26.0%
B37: Gross Margin amount change (in %) | E37: =IFERROR(((1+E31)-(1-E27)*(1+E33))*(1+E29)/E27-1,0) -> -14.3% | I37: 5.0% | M37: 10.0% | Q37: 5.0%
B39: NEW Profitability* (in %) | E39: =1-(1-E27)*(1+E33)/(1+E31) -> 23.3% | F39: =SUM(F31:F33) -> -6.7 pts | I39: =1-(1-I27)*(1+I33)/(1+I31) -> 23.3% | J39: =SUM(J31:J33) -> -6.7 pts | M39: =1-(1-M27)*(1+M33)/(1+M31) -> 28.1% | N39: =SUM(N31:N33) -> -1.9 pts | Q39: =1-(1-Q27)*(1+Q33)/(1+Q31) -> 25.0% | R39: =SUM(R31:R33) -> -5.0 pts
B41: input
B42: formula
B44: * Profitability = Gross Margin in % of Net Sales
B45: ** GM = Gross Margin
A47: N3→ | B47: Price Discounts (Impact on Profit amount and Profitability*)
F49: in % points of GM**
B50: Current Profitability* (in %) | E50: 40.0%
B52: Price Discount*** (in %) | E52: 25.0%
B54: NEW Profitability* (in %) | E54: =IF(E50="","",1-(1-E50)/(1-E52)) -> 20.0% | F54: =IF(E50="","",(1-E50)*(1-1/(1-E52))*100) -> -20.0 pts
B56: Volume should grow by | E56: =IF(E52<0,"",IF(E52>=E50,"",1/(1-E52)*E50/E54-1)) -> 166.7% | F56: =IF(OR(E50="",E52=""),"",IF(E52>=E50,"Not possible to compensate profit loss. Reduce discount",IF(E52<0,"Price discount should be written without '-'",""))) -> 
B57: to compensate price reduction and not to lose the amount of profit
B59: To increase the amount of gross margin:
B60: by this percentage | E60: 20.0%
B62: Volume should grow by | E62: =IF(E52>=E50,"",(1+E56)*(1+E60)-1) -> 220.0%
B64: Net Sales will increase by | E64: =IF(E52>=E50,"",(1+E62)*(1-E52)-1) -> 140.0%
B66: input
B67: formula
B69: * Profitability = Gross Margin in % of Net Sales
B70: ** GM = Gross Margin
B71: *** The percentage of price discount should be input without "-", e.g. 10%, not -10%

Sheet Price Increase
B1: Impact of Price Increase on "Profit in % of Sales"
B2: New profit (in % of sales) after increasing prices:
B4: Profit (in % of sales) before change | D4: Price increase in %
D5: 1% | F5: 2% | H5: 3% | J5: 4% | L5: 5% | N5: 10% | P5: 15% | R5: 20% | T5: 25% | V5: 30% | X5: 40% | Z5: 50%
B6: 5% | D6: =(1-$B6)*(1-1/(1+D$5))+$B6 -> 5.9% | F6: =(1-$B6)*(1-1/(1+F$5))+$B6 -> 6.9% | H6: =(1-$B6)*(1-1/(1+H$5))+$B6 -> 7.8% | J6: =(1-$B6)*(1-1/(1+J$5))+$B6 -> 8.7% | L6: =(1-$B6)*(1-1/(1+L$5))+$B6 -> 9.5% | N6: =(1-$B6)*(1-1/(1+N$5))+$B6 -> 13.6% | P6: =(1-$B6)*(1-1/(1+P$5))+$B6 -> 17.4% | R6: =(1-$B6)*(1-1/(1+R$5))+$B6 -> 20.8% | T6: =(1-$B6)*(1-1/(1+T$5))+$B6 -> 24.0% | V6: =(1-$B6)*(1-1/(1+V$5))+$B6 -> 26.9% | X6: =(1-$B6)*(1-1/(1+X$5))+$B6 -> 32.1% | Z6: =(1-$B6)*(1-1/(1+Z$5))+$B6 -> 36.7%
B7: 10% | D7: 10.9% | F7: 11.8% | H7: 12.6% | J7: 13.5% | L7: 14.3% | N7: 18.2% | P7: 21.7% | R7: 25.0% | T7: 28.0% | V7: 30.8% | X7: 35.7% | Z7: 40.0%
B8: 15% | D8: 15.8% | F8: 16.7% | H8: 17.5% | J8: 18.3% | L8: 19.0% | N8: 22.7% | P8: 26.1% | R8: 29.2% | T8: 32.0% | V8: 34.6% | X8: 39.3% | Z8: 43.3%
B9: 20% | D9: 20.8% | F9: 21.6% | H9: 22.3% | J9: 23.1% | L9: 23.8% | N9: 27.3% | P9: 30.4% | R9: 33.3% | T9: 36.0% | V9: 38.5% | X9: 42.9% | Z9: 46.7%
B10: 25% | D10: 25.7% | F10: 26.5% | H10: 27.2% | J10: 27.9% | L10: 28.6% | N10: 31.8% | P10: 34.8% | R10: 37.5% | T10: 40.0% | V10: 42.3% | X10: 46.4% | Z10: 50.0%
B11: 30% | D11: 30.7% | F11: 31.4% | H11: 32.0% | J11: 32.7% | L11: 33.3% | N11: 36.4% | P11: 39.1% | R11: 41.7% | T11: 44.0% | V11: 46.2% | X11: 50.0% | Z11: 53.3%
B12: 35% | D12: 35.6% | F12: 36.3% | H12: 36.9% | J12: 37.5% | L12: 38.1% | N12: 40.9% | P12: 43.5% | R12: 45.8% | T12: 48.0% | V12: 50.0% | X12: 53.6% | Z12: 56.7%
B13: 40% | D13: 40.6% | F13: 41.2% | H13: 41.7% | J13: 42.3% | L13: 42.9% | N13: 45.5% | P13: 47.8% | R13: 50.0% | T13: 52.0% | V13: 53.8% | X13: 57.1% | Z13: 60.0%
B14: 45% | D14: 45.5% | F14: 46.1% | H14: 46.6% | J14: 47.1% | L14: 47.6% | N14: 50.0% | P14: 52.2% | R14: 54.2% | T14: 56.0% | V14: 57.7% | X14: 60.7% | Z14: 63.3%
B15: 50% | D15: 50.5% | F15: 51.0% | H15: 51.5% | J15: 51.9% | L15: 52.4% | N15: 54.5% | P15: 56.5% | R15: 58.3% | T15: 60.0% | V15: 61.5% | X15: 64.3% | Z15: 66.7%
B16: 60% | D16: 60.4% | F16: 60.8% | H16: 61.2% | J16: 61.5% | L16: 61.9% | N16: 63.6% | P16: 65.2% | R16: 66.7% | T16: 68.0% | V16: 69.2% | X16: 71.4% | Z16: 73.3%
B17: 70% | D17: 70.3% | F17: 70.6% | H17: 70.9% | J17: 71.2% | L17: 71.4% | N17: 72.7% | P17: 73.9% | R17: 75.0% | T17: 76.0% | V17: 76.9% | X17: 78.6% | Z17: 80.0%
B18: 80% | D18: 80.2% | F18: 80.4% | H18: 80.6% | J18: 80.8% | L18: 81.0% | N18: 81.8% | P18: 82.6% | R18: 83.3% | T18: 84.0% | V18: 84.6% | X18: 85.7% | Z18: 86.7%
B19: 90% | D19: 90.1% | F19: 90.2% | H19: 90.3% | J19: 90.4% | L19: 90.5% | N19: 90.9% | P19: 91.3% | R19: 91.7% | T19: 92.0% | V19: 92.3% | X19: 92.9% | Z19: 93.3%
B21: Evolution of profit in % of sales (in percentage points):
B23: Profit (in % of sales) before change | D23: Price increase in %
D24: 1% | F24: 2% | H24: 3% | J24: 4% | L24: 5% | N24: 10% | P24: 15% | R24: 20% | T24: 25% | V24: 30% | X24: 40% | Z24: 50%
B25: 5% | D25: =(1-$B25)*(1-1/(1+D$24))*100 -> +1 pts | F25: =(1-$B25)*(1-1/(1+F$24))*100 -> +2 pts | H25: =(1-$B25)*(1-1/(1+H$24))*100 -> +3 pts | J25: =(1-$B25)*(1-1/(1+J$24))*100 -> +4 pts | L25: =(1-$B25)*(1-1/(1+L$24))*100 -> +5 pts | N25: =(1-$B25)*(1-1/(1+N$24))*100 -> +9 pts | P25: =(1-$B25)*(1-1/(1+P$24))*100 -> +12 pts | R25: =(1-$B25)*(1-1/(1+R$24))*100 -> +16 pts | T25: =(1-$B25)*(1-1/(1+T$24))*100 -> +19 pts | V25: =(1-$B25)*(1-1/(1+V$24))*100 -> +22 pts | X25: =(1-$B25)*(1-1/(1+X$24))*100 -> +27 pts | Z25: =(1-$B25)*(1-1/(1+Z$24))*100 -> +32 pts
B26: 10% | D26: +1 pts | F26: +2 pts | H26: +3 pts | J26: +3 pts | L26: +4 pts | N26: +8 pts | P26: +12 pts | R26: +15 pts | T26: +18 pts | V26: +21 pts | X26: +26 pts | Z26: +30 pts
B27: 15% | D27: +1 pts | F27: +2 pts | H27: +2 pts | J27: +3 pts | L27: +4 pts | N27: +8 pts | P27: +11 pts | R27: +14 pts | T27: +17 pts | V27: +20 pts | X27: +24 pts | Z27: +28 pts
B28: 20% | D28: +1 pts | F28: +2 pts | H28: +2 pts | J28: +3 pts | L28: +4 pts | N28: +7 pts | P28: +10 pts | R28: +13 pts | T28: +16 pts | V28: +18 pts | X28: +23 pts | Z28: +27 pts
B29: 25% | D29: +1 pts | F29: +1 pts | H29: +2 pts | J29: +3 pts | L29: +4 pts | N29: +7 pts | P29: +10 pts | R29: +13 pts | T29: +15 pts | V29: +17 pts | X29: +21 pts | Z29: +25 pts
B30: 30% | D30: +1 pts | F30: +1 pts | H30: +2 pts | J30: +3 pts | L30: +3 pts | N30: +6 pts | P30: +9 pts | R30: +12 pts | T30: +14 pts | V30: +16 pts | X30: +20 pts | Z30: +23 pts
B31: 35% | D31: +1 pts | F31: +1 pts | H31: +2 pts | J31: +3 pts | L31: +3 pts | N31: +6 pts | P31: +8 pts | R31: +11 pts | T31: +13 pts | V31: +15 pts | X31: +19 pts | Z31: +22 pts
B32: 40% | D32: +1 pts | F32: +1 pts | H32: +2 pts | J32: +2 pts | L32: +3 pts | N32: +5 pts | P32: +8 pts | R32: +10 pts | T32: +12 pts | V32: +14 pts | X32: +17 pts | Z32: +20 pts
B33: 45% | D33: +1 pts | F33: +1 pts | H33: +2 pts | J33: +2 pts | L33: +3 pts | N33: +5 pts | P33: +7 pts | R33: +9 pts | T33: +11 pts | V33: +13 pts | X33: +16 pts | Z33: +18 pts
B34: 50% | D34: +0 pts | F34: +1 pts | H34: +1 pts | J34: +2 pts | L34: +2 pts | N34: +5 pts | P34: +7 pts | R34: +8 pts | T34: +10 pts | V34: +12 pts | X34: +14 pts | Z34: +17 pts
B35: 60% | D35: +0 pts | F35: +1 pts | H35: +1 pts | J35: +2 pts | L35: +2 pts | N35: +4 pts | P35: +5 pts | R35: +7 pts | T35: +8 pts | V35: +9 pts | X35: +11 pts | Z35: +13 pts
B36: 70% | D36: +0 pts | F36: +1 pts | H36: +1 pts | J36: +1 pts | L36: +1 pts | N36: +3 pts | P36: +4 pts | R36: +5 pts | T36: +6 pts | V36: +7 pts | X36: +9 pts | Z36: +10 pts
B37: 80% | D37: +0 pts | F37: +0 pts | H37: +1 pts | J37: +1 pts | L37: +1 pts | N37: +2 pts | P37: +3 pts | R37: +3 pts | T37: +4 pts | V37: +5 pts | X37: +6 pts | Z37: +7 pts
B38: 90% | D38: +0 pts | F38: +0 pts | H38: +0 pts | J38: +0 pts | L38: +0 pts | N38: +1 pts | P38: +1 pts | R38: +2 pts | T38: +2 pts | V38: +2 pts | X38: +3 pts | Z38: +3 pts

Sheet Profit growth
B1: Price Increase Needed to Grow the Amount of Profit by X%
B2: Price increase in %
B4: Profit (in % of sales) before change | C4: X: % of profit growth
C5: 5% | D5: 10% | E5: 15% | F5: 20% | G5: 25% | H5: 30% | I5: 40% | J5: 50% | K5: 60% | L5: 80% | M5: 100% | N5: 200%
B6: 5% | C6: =$B6*C$5 -> 0% | D6: =$B6*D$5 -> 1% | E6: 1% | F6: 1% | G6: 1% | H6: 2% | I6: 2% | J6: 3% | K6: 3% | L6: 4% | M6: 5% | N6: 10%
B7: 10% | C7: =$B7*C$5 -> 1% | D7: 1% | E7: 2% | F7: 2% | G7: 3% | H7: 3% | I7: 4% | J7: 5% | K7: 6% | L7: 8% | M7: 10% | N7: 20%
B8: 15% | C8: =$B8*C$5 -> 1% | D8: 2% | E8: 2% | F8: 3% | G8: 4% | H8: 5% | I8: 6% | J8: 8% | K8: 9% | L8: 12% | M8: 15% | N8: 30%
B9: 20% | C9: 1% | D9: 2% | E9: 3% | F9: =$B9*F$5 -> 4% | G9: 5% | H9: 6% | I9: 8% | J9: 10% | K9: 12% | L9: 16% | M9: 20% | N9: 40%
B10: 25% | C10: 1% | D10: 3% | E10: 4% | F10: 5% | G10: 6% | H10: 8% | I10: 10% | J10: 13% | K10: 15% | L10: 20% | M10: 25% | N10: 50%
B11: 30% | C11: 2% | D11: 3% | E11: 5% | F11: 6% | G11: 8% | H11: 9% | I11: 12% | J11: 15% | K11: 18% | L11: 24% | M11: 30% | N11: 60%
B12: 35% | C12: 2% | D12: 4% | E12: 5% | F12: 7% | G12: 9% | H12: 11% | I12: 14% | J12: 18% | K12: 21% | L12: 28% | M12: 35% | N12: 70%
B13: 40% | C13: 2% | D13: 4% | E13: 6% | F13: 8% | G13: 10% | H13: 12% | I13: 16% | J13: 20% | K13: 24% | L13: 32% | M13: 40% | N13: 80%
B14: 45% | C14: 2% | D14: 5% | E14: 7% | F14: 9% | G14: 11% | H14: 14% | I14: 18% | J14: 23% | K14: 27% | L14: 36% | M14: 45% | N14: 90%
B15: 50% | C15: 3% | D15: 5% | E15: 8% | F15: 10% | G15: 13% | H15: 15% | I15: 20% | J15: 25% | K15: 30% | L15: 40% | M15: 50% | N15: 100%
B16: 60% | C16: 3% | D16: 6% | E16: 9% | F16: 12% | G16: 15% | H16: 18% | I16: 24% | J16: 30% | K16: 36% | L16: 48% | M16: 60% | N16: 120%
B17: 70% | C17: 4% | D17: 7% | E17: 11% | F17: 14% | G17: 18% | H17: 21% | I17: 28% | J17: 35% | K17: 42% | L17: 56% | M17: 70% | N17: 140%
B18: 80% | C18: 4% | D18: 8% | E18: 12% | F18: 16% | G18: 20% | H18: 24% | I18: 32% | J18: 40% | K18: 48% | L18: 64% | M18: 80% | N18: 160%
B19: 90% | C19: 5% | D19: 9% | E19: 14% | F19: 18% | G19: 23% | H19: 27% | I19: 36% | J19: 45% | K19: 54% | L19: 72% | M19: 90% | N19: 180%

Sheet Price discounts
B1: Impact of Price Discounts on "Profit in % of Sales"
B2: New profit (in % of sales) after giving a discount
B4: Profit (in % of sales) before discount | F4: Price discount (price reduction in %)
F5: -1% | I5: -2% | L5: -3% | O5: -4% | R5: -5% | U5: -10% | X5: -15% | AA5: -20% | AD5: -25% | AG5: -30% | AJ5: -40% | AM5: -50%
B6: 5% | C6: =B6 -> 0.05 | E6: =(1-$B6)*(1-1/(1+F$5))+$B6 -> 4.0% | G6: =E6 -> 0.0404040404 | H6: =(1-$B6)*(1-1/(1+I$5))+$B6 -> 3.1% | J6: =H6 -> 0.0306122449 | K6: =(1-$B6)*(1-1/(1+L$5))+$B6 -> 2.1% | M6: =K6 -> 0.0206185567 | N6: =(1-$B6)*(1-1/(1+O$5))+$B6 -> 1.0% | P6: =N6 -> 0.01041666667 | Q6: =(1-$B6)*(1-1/(1+R$5))+$B6 -> 0.0% | S6: =Q6 -> 6.245004514e-17 | T6: =(1-$B6)*(1-1/(1+U$5))+$B6 -> -5.6% | V6: =T6 -> -0.05555555556 | W6: =(1-$B6)*(1-1/(1+X$5))+$B6 -> -11.8% | Y6: =W6 -> -0.1176470588 | Z6: =(1-$B6)*(1-1/(1+AA$5))+$B6 -> -18.8% | AB6: =Z6 -> -0.1875 | AC6: =(1-$B6)*(1-1/(1+AD$5))+$B6 -> -26.7% | AE6: =AC6 -> -0.2666666667 | AF6: =(1-$B6)*(1-1/(1+AG$5))+$B6 -> -35.7% | AH6: =AF6 -> -0.3571428571 | AI6: =(1-$B6)*(1-1/(1+AJ$5))+$B6 -> -58.3% | AK6: =AI6 -> -0.5833333333 | AL6: =(1-$B6)*(1-1/(1+AM$5))+$B6 -> -90.0% | AN6: =AL6 -> -0.9
B7: 10% | C7: 0.1 | E7: =(1-$B7)*(1-1/(1+F$5))+$B7 -> 9.1% | G7: 0.09090909091 | H7: 8.2% | J7: 0.08163265306 | K7: 7.2% | M7: 0.07216494845 | N7: 6.2% | P7: 0.0625 | Q7: 5.3% | S7: 0.05263157895 | T7: 0.0% | V7: 0 | W7: -5.9% | Y7: -0.05882352941 | Z7: -12.5% | AB7: -0.125 | AC7: -20.0% | AE7: -0.2 | AF7: -28.6% | AH7: -0.2857142857 | AI7: -50.0% | AK7: -0.5 | AL7: -80.0% | AN7: -0.8
B8: 15% | C8: 0.15 | E8: 14.1% | G8: 0.1414141414 | H8: 13.3% | J8: 0.1326530612 | K8: 12.4% | M8: 0.1237113402 | N8: 11.5% | P8: 0.1145833333 | Q8: 10.5% | S8: 0.1052631579 | T8: 5.6% | V8: 0.05555555556 | W8: 0.0% | Y8: 0 | Z8: -6.3% | AB8: -0.0625 | AC8: -13.3% | AE8: -0.1333333333 | AF8: -21.4% | AH8: -0.2142857143 | AI8: -41.7% | AK8: -0.4166666667 | AL8: -70.0% | AN8: -0.7
B9: 20% | C9: 0.2 | E9: 19.2% | G9: 0.1919191919 | H9: 18.4% | J9: 0.1836734694 | K9: 17.5% | M9: 0.175257732 | N9: 16.7% | P9: 0.1666666667 | Q9: 15.8% | S9: 0.1578947368 | T9: 11.1% | V9: 0.1111111111 | W9: 5.9% | Y9: 0.05882352941 | Z9: 0.0% | AB9: 0 | AC9: -6.7% | AE9: -0.06666666667 | AF9: -14.3% | AH9: -0.1428571429 | AI9: -33.3% | AK9: -0.3333333333 | AL9: -60.0% | AN9: -0.6
B10: 25% | C10: 0.25 | E10: 24.2% | G10: 0.2424242424 | H10: 23.5% | J10: 0.2346938776 | K10: 22.7% | M10: 0.2268041237 | N10: 21.9% | P10: 0.21875 | Q10: 21.1% | S10: 0.2105263158 | T10: 16.7% | V10: 0.1666666667 | W10: 11.8% | Y10: 0.1176470588 | Z10: 6.3% | AB10: 0.0625 | AC10: 0.0% | AE10: 0 | AF10: -7.1% | AH10: -0.07142857143 | AI10: -25.0% | AK10: -0.25 | AL10: -50.0% | AN10: -0.5
B11: 30% | C11: 0.3 | E11: 29.3% | G11: 0.2929292929 | H11: 28.6% | J11: 0.2857142857 | K11: 27.8% | M11: 0.2783505155 | N11: 27.1% | P11: 0.2708333333 | Q11: 26.3% | S11: 0.2631578947 | T11: 22.2% | V11: 0.2222222222 | W11: 17.6% | Y11: 0.1764705882 | Z11: 12.5% | AB11: 0.125 | AC11: 6.7% | AE11: 0.06666666667 | AF11: 0.0% | AH11: 0 | AI11: -16.7% | AK11: -0.1666666667 | AL11: -40.0% | AN11: -0.4
B12: 35% | C12: 0.35 | E12: 34.3% | G12: 0.3434343434 | H12: 33.7% | J12: 0.3367346939 | K12: 33.0% | M12: 0.3298969072 | N12: 32.3% | P12: 0.3229166667 | Q12: 31.6% | S12: 0.3157894737 | T12: 27.8% | V12: 0.2777777778 | W12: 23.5% | Y12: 0.2352941176 | Z12: 18.8% | AB12: 0.1875 | AC12: 13.3% | AE12: 0.1333333333 | AF12: 7.1% | AH12: 0.07142857143 | AI12: -8.3% | AK12: -0.08333333333 | AL12: -30.0% | AN12: -0.3
B13: 40% | C13: 0.4 | E13: 39.4% | G13: 0.3939393939 | H13: 38.8% | J13: 0.387755102 | K13: 38.1% | M13: 0.381443299 | N13: 37.5% | P13: 0.375 | Q13: 36.8% | S13: 0.3684210526 | T13: 33.3% | V13: 0.3333333333 | W13: 29.4% | Y13: 0.2941176471 | Z13: 25.0% | AB13: 0.25 | AC13: 20.0% | AE13: 0.2 | AF13: 14.3% | AH13: 0.1428571429 | AI13: 0.0% | AK13: 0 | AL13: -20.0% | AN13: -0.2
B14: 45% | C14: 0.45 | E14: 44.4% | G14: 0.4444444444 | H14: 43.9% | J14: 0.4387755102 | K14: 43.3% | M14: 0.4329896907 | N14: 42.7% | P14: 0.4270833333 | Q14: 42.1% | S14: 0.4210526316 | T14: 38.9% | V14: 0.3888888889 | W14: 35.3% | Y14: 0.3529411765 | Z14: 31.3% | AB14: 0.3125 | AC14: 26.7% | AE14: 0.2666666667 | AF14: 21.4% | AH14: 0.2142857143 | AI14: 8.3% | AK14: 0.08333333333 | AL14: -10.0% | AN14: -0.1
B15: 50% | C15: 0.5 | E15: 49.5% | G15: 0.4949494949 | H15: 49.0% | J15: 0.4897959184 | K15: 48.5% | M15: 0.4845360825 | N15: 47.9% | P15: 0.4791666667 | Q15: 47.4% | S15: 0.4736842105 | T15: 44.4% | V15: 0.4444444444 | W15: 41.2% | Y15: 0.4117647059 | Z15: 37.5% | AB15: 0.375 | AC15: 33.3% | AE15: 0.3333333333 | AF15: 28.6% | AH15: 0.2857142857 | AI15: 16.7% | AK15: 0.1666666667 | AL15: 0.0% | AN15: 0
B16: 60% | C16: 0.6 | E16: 59.6% | G16: 0.595959596 | H16: 59.2% | J16: 0.5918367347 | K16: 58.8% | M16: 0.587628866 | N16: 58.3% | P16: 0.5833333333 | Q16: 57.9% | S16: 0.5789473684 | T16: 55.6% | V16: 0.5555555556 | W16: 52.9% | Y16: 0.5294117647 | Z16: 50.0% | AB16: 0.5 | AC16: 46.7% | AE16: 0.4666666667 | AF16: 42.9% | AH16: 0.4285714286 | AI16: 33.3% | AK16: 0.3333333333 | AL16: 20.0% | AN16: 0.2
B17: 70% | C17: 0.7 | E17: 69.7% | G17: 0.696969697 | H17: 69.4% | J17: 0.693877551 | K17: 69.1% | M17: 0.6907216495 | N17: 68.8% | P17: 0.6875 | Q17: 68.4% | S17: 0.6842105263 | T17: 66.7% | V17: 0.6666666667 | W17: 64.7% | Y17: 0.6470588235 | Z17: 62.5% | AB17: 0.625 | AC17: 60.0% | AE17: 0.6 | AF17: 57.1% | AH17: 0.5714285714 | AI17: 50.0% | AK17: 0.5 | AL17: 40.0% | AN17: 0.4
B18: 80% | C18: 0.8 | E18: 79.8% | G18: 0.797979798 | H18: 79.6% | J18: 0.7959183673 | K18: 79.4% | M18: 0.793814433 | N18: 79.2% | P18: 0.7916666667 | Q18: 78.9% | S18: 0.7894736842 | T18: 77.8% | V18: 0.7777777778 | W18: 76.5% | Y18: 0.7647058824 | Z18: 75.0% | AB18: 0.75 | AC18: 73.3% | AE18: 0.7333333333 | AF18: 71.4% | AH18: 0.7142857143 | AI18: 66.7% | AK18: 0.6666666667 | AL18: 60.0% | AN18: 0.6
B19: 90% | C19: 0.9 | E19: 89.9% | G19: =+E19 -> 0.898989899 | H19: 89.8% | J19: =+H19 -> 0.8979591837 | K19: 89.7% | M19: =+K19 -> 0.8969072165 | N19: 89.6% | P19: =+N19 -> 0.8958333333 | Q19: 89.5% | S19: =+Q19 -> 0.8947368421 | T19: 88.9% | V19: =+T19 -> 0.8888888889 | W19: 88.2% | Y19: =+W19 -> 0.8823529412 | Z19: 87.5% | AB19: =+Z19 -> 0.875 | AC19: 86.7% | AE19: =+AC19 -> 0.8666666667 | AF19: 85.7% | AH19: =+AF19 -> 0.8571428571 | AI19: 83.3% | AK19: =+AI19 -> 0.8333333333 | AL19: 80.0% | AN19: =+AL19 -> 0.8
B21: Evolution of profit in % of sales (in percentage points)
B23: Profit (in % of sales) before discount | F23: Price discount (price reduction in %)
F24: -1% | I24: -2% | L24: -3% | O24: -4% | R24: -5% | U24: -10% | X24: -15% | AA24: -20% | AD24: -25% | AG24: -30% | AJ24: -40% | AM24: -50%
B25: 5% | F25: =(1-$B25)*(1-1/(1+F$24))*100 -> -1 pts | I25: =(1-$B25)*(1-1/(1+I$24))*100 -> -2 pts | L25: =(1-$B25)*(1-1/(1+L$24))*100 -> -3 pts | O25: =(1-$B25)*(1-1/(1+O$24))*100 -> -4 pts | R25: =(1-$B25)*(1-1/(1+R$24))*100 -> -5 pts | U25: =(1-$B25)*(1-1/(1+U$24))*100 -> -11 pts | X25: =(1-$B25)*(1-1/(1+X$24))*100 -> -17 pts | AA25: =(1-$B25)*(1-1/(1+AA$24))*100 -> -24 pts | AD25: =(1-$B25)*(1-1/(1+AD$24))*100 -> -32 pts | AG25: =(1-$B25)*(1-1/(1+AG$24))*100 -> -41 pts | AJ25: =(1-$B25)*(1-1/(1+AJ$24))*100 -> -63 pts | AM25: =(1-$B25)*(1-1/(1+AM$24))*100 -> -95 pts
B26: 10% | F26: -1 pts | I26: -2 pts | L26: -3 pts | O26: -4 pts | R26: -5 pts | U26: -10 pts | X26: -16 pts | AA26: -23 pts | AD26: -30 pts | AG26: -39 pts | AJ26: -60 pts | AM26: -90 pts
B27: 15% | F27: =(1-$B27)*(1-1/(1+F$24))*100 -> -1 pts | I27: -2 pts | L27: -3 pts | O27: -4 pts | R27: -4 pts | U27: -9 pts | X27: -15 pts | AA27: -21 pts | AD27: -28 pts | AG27: -36 pts | AJ27: -57 pts | AM27: -85 pts
B28: 20% | F28: -1 pts | I28: -2 pts | L28: -2 pts | O28: -3 pts | R28: -4 pts | U28: -9 pts | X28: -14 pts | AA28: -20 pts | AD28: -27 pts | AG28: -34 pts | AJ28: -53 pts | AM28: -80 pts
B29: 25% | F29: -1 pts | I29: -2 pts | L29: -2 pts | O29: -3 pts | R29: -4 pts | U29: -8 pts | X29: -13 pts | AA29: -19 pts | AD29: -25 pts | AG29: -32 pts | AJ29: -50 pts | AM29: -75 pts
B30: 30% | F30: -1 pts | I30: -1 pts | L30: -2 pts | O30: -3 pts | R30: -4 pts | U30: -8 pts | X30: -12 pts | AA30: -18 pts | AD30: -23 pts | AG30: -30 pts | AJ30: -47 pts | AM30: -70 pts
B31: 35% | F31: -1 pts | I31: -1 pts | L31: -2 pts | O31: -3 pts | R31: -3 pts | U31: -7 pts | X31: -11 pts | AA31: -16 pts | AD31: -22 pts | AG31: -28 pts | AJ31: -43 pts | AM31: -65 pts
B32: 40% | F32: -1 pts | I32: -1 pts | L32: -2 pts | O32: -3 pts | R32: -3 pts | U32: -7 pts | X32: -11 pts | AA32: -15 pts | AD32: -20 pts | AG32: -26 pts | AJ32: -40 pts | AM32: -60 pts
B33: 45% | F33: -1 pts | I33: -1 pts | L33: -2 pts | O33: -2 pts | R33: -3 pts | U33: -6 pts | X33: -10 pts | AA33: -14 pts | AD33: -18 pts | AG33: -24 pts | AJ33: -37 pts | AM33: -55 pts
B34: 50% | F34: -1 pts | I34: -1 pts | L34: -2 pts | O34: -2 pts | R34: -3 pts | U34: -6 pts | X34: -9 pts | AA34: -13 pts | AD34: -17 pts | AG34: -21 pts | AJ34: -33 pts | AM34: -50 pts
B35: 60% | F35: -0 pts | I35: -1 pts | L35: -1 pts | O35: -2 pts | R35: -2 pts | U35: -4 pts | X35: -7 pts | AA35: -10 pts | AD35: -13 pts | AG35: -17 pts | AJ35: -27 pts | AM35: -40 pts
B36: 70% | F36: -0 pts | I36: -1 pts | L36: -1 pts | O36: -1 pts | R36: -2 pts | U36: -3 pts | X36: -5 pts | AA36: -8 pts | AD36: -10 pts | AG36: -13 pts | AJ36: -20 pts | AM36: -30 pts
B37: 80% | F37: -0 pts | I37: -0 pts | L37: -1 pts | O37: -1 pts | R37: -1 pts | U37: -2 pts | X37: -4 pts | AA37: -5 pts | AD37: -7 pts | AG37: -9 pts | AJ37: -13 pts | AM37: -20 pts
B38: 90% | F38: -0 pts | I38: -0 pts | L38: -0 pts | O38: -0 pts | R38: -1 pts | U38: -1 pts | X38: -2 pts | AA38: -3 pts | AD38: -3 pts | AG38: -4 pts | AJ38: -7 pts | AM38: -10 pts

Sheet Volume increase
B1: Compensation of Price Discounts by Volume Increase
B2: Volume increase in % - necessary to maintain the same amount of profit after giving a discount
B4: Profit (in % of sales) before change | C4: Price discount (price reduction in %)
C5: -1% | D5: -2% | E5: -3% | F5: -4% | G5: -5% | H5: -10% | I5: -15% | J5: -20% | K5: -25% | L5: -30% | M5: -40% | N5: -50%
B6: 5% | C6: =IF((1-$B6)*(1-1/(1+C$5))+$B6<0.001,"-",$B6/((1-$B6)*(1-1/(1+C$5))+$B6)/(1+C$5)-1) -> 25% | D6: =IF((1-$B6)*(1-1/(1+D$5))+$B6<0.001,"-",$B6/((1-$B6)*(1-1/(1+D$5))+$B6)/(1+D$5)-1) -> 67% | E6: 150% | F6: 400% | G6: - | H6: - | I6: - | J6: - | K6: - | L6: - | M6: - | N6: -
B7: 10% | C7: 11% | D7: 25% | E7: 43% | F7: 67% | G7: 100% | H7: - | I7: - | J7: - | K7: - | L7: - | M7: - | N7: -
B8: 15% | C8: 7% | D8: 15% | E8: 25% | F8: 36% | G8: 50% | H8: 200% | I8: - | J8: - | K8: - | L8: - | M8: - | N8: -
B9: 20% | C9: 5% | D9: 11% | E9: 18% | F9: 25% | G9: 33% | H9: 100% | I9: 300% | J9: - | K9: - | L9: - | M9: - | N9: -
B10: 25% | C10: 4% | D10: 9% | E10: 14% | F10: 19% | G10: 25% | H10: 67% | I10: 150% | J10: 400% | K10: - | L10: - | M10: - | N10: -
B11: 30% | C11: 3% | D11: 7% | E11: 11% | F11: 15% | G11: 20% | H11: 50% | I11: 100% | J11: 200% | K11: 500% | L11: - | M11: - | N11: -
B12: 35% | C12: 3% | D12: 6% | E12: 9% | F12: 13% | G12: 17% | H12: 40% | I12: 75% | J12: 133% | K12: 250% | L12: 600% | M12: - | N12: -
B13: 40% | C13: 3% | D13: 5% | E13: 8% | F13: 11% | G13: 14% | H13: 33% | I13: 60% | J13: 100% | K13: 167% | L13: 300% | M13: - | N13: -
B14: 45% | C14: 2% | D14: 5% | E14: 7% | F14: 10% | G14: 13% | H14: 29% | I14: 50% | J14: 80% | K14: 125% | L14: 200% | M14: 800% | N14: -
B15: 50% | C15: 2% | D15: 4% | E15: 6% | F15: 9% | G15: 11% | H15: 25% | I15: 43% | J15: 67% | K15: 100% | L15: 150% | M15: 400% | N15: -
B16: 60% | C16: 2% | D16: 3% | E16: 5% | F16: 7% | G16: 9% | H16: 20% | I16: 33% | J16: 50% | K16: 71% | L16: 100% | M16: 200% | N16: 500%
B17: 70% | C17: 1% | D17: 3% | E17: 4% | F17: 6% | G17: 8% | H17: 17% | I17: 27% | J17: 40% | K17: 56% | L17: 75% | M17: 133% | N17: 250%
B18: 80% | C18: 1% | D18: 3% | E18: 4% | F18: 5% | G18: 7% | H18: 14% | I18: 23% | J18: 33% | K18: 45% | L18: 60% | M18: 100% | N18: 167%
B19: 90% | C19: 1% | D19: 2% | E19: 3% | F19: 5% | G19: 6% | H19: 13% | I19: 20% | J19: 29% | K19: 38% | L19: 50% | M19: 80% | N19: 125%

Sheet Impact of costs
B1: Impact of Cost Variations on "Profit in % of Sales"
B2: New profit (in % of sales) after cost change
B4: Profit (in % of sales) before change | C4: Cost increase in % | L4: Cost decrease in %
C5: 20% | D5: 15% | E5: 10% | F5: 5% | G5: 4% | H5: 3% | I5: 2% | J5: 1% | K5: 0% | L5: -1% | M5: -2% | N5: -3% | O5: -4% | P5: -5% | Q5: -10% | R5: -15% | S5: -20%
B6: 5% | C6: =$B6+C25/100 -> -14.0% | D6: =$B6+D25/100 -> -9.3% | E6: -4.5% | F6: 0.3% | G6: 1.2% | H6: 2.2% | I6: 3.1% | J6: 4.1% | L6: =$B6+L25/100 -> 6.0% | M6: 6.9% | N6: 7.9% | O6: 8.8% | P6: 9.8% | Q6: 14.5% | R6: 19.3% | S6: 24.0%
B7: 10% | C7: -8.0% | D7: -3.5% | E7: 1.0% | F7: 5.5% | G7: 6.4% | H7: 7.3% | I7: 8.2% | J7: 9.1% | L7: 10.9% | M7: 11.8% | N7: 12.7% | O7: 13.6% | P7: 14.5% | Q7: 19.0% | R7: 23.5% | S7: 28.0%
B8: 15% | C8: -2.0% | D8: 2.3% | E8: 6.5% | F8: 10.8% | G8: 11.6% | H8: 12.5% | I8: 13.3% | J8: 14.2% | L8: 15.9% | M8: 16.7% | N8: 17.6% | O8: 18.4% | P8: 19.3% | Q8: 23.5% | R8: 27.8% | S8: 32.0%
B9: 20% | C9: 4.0% | D9: 8.0% | E9: 12.0% | F9: 16.0% | G9: 16.8% | H9: 17.6% | I9: 18.4% | J9: 19.2% | L9: 20.8% | M9: 21.6% | N9: 22.4% | O9: 23.2% | P9: 24.0% | Q9: 28.0% | R9: 32.0% | S9: 36.0%
B10: 25% | C10: 10.0% | D10: 13.8% | E10: 17.5% | F10: 21.3% | G10: 22.0% | H10: 22.8% | I10: 23.5% | J10: 24.3% | L10: 25.8% | M10: 26.5% | N10: 27.3% | O10: 28.0% | P10: 28.8% | Q10: 32.5% | R10: 36.3% | S10: 40.0%
B11: 30% | C11: 16.0% | D11: 19.5% | E11: 23.0% | F11: 26.5% | G11: 27.2% | H11: 27.9% | I11: 28.6% | J11: 29.3% | L11: 30.7% | M11: 31.4% | N11: 32.1% | O11: 32.8% | P11: 33.5% | Q11: 37.0% | R11: 40.5% | S11: 44.0%
B12: 35% | C12: 22.0% | D12: 25.3% | E12: 28.5% | F12: 31.8% | G12: 32.4% | H12: 33.1% | I12: 33.7% | J12: 34.4% | L12: 35.7% | M12: 36.3% | N12: 37.0% | O12: 37.6% | P12: 38.3% | Q12: 41.5% | R12: 44.8% | S12: 48.0%
B13: 40% | C13: 28.0% | D13: 31.0% | E13: 34.0% | F13: 37.0% | G13: 37.6% | H13: 38.2% | I13: 38.8% | J13: 39.4% | L13: 40.6% | M13: 41.2% | N13: 41.8% | O13: 42.4% | P13: 43.0% | Q13: 46.0% | R13: 49.0% | S13: 52.0%
B14: 45% | C14: 34.0% | D14: 36.8% | E14: 39.5% | F14: 42.3% | G14: 42.8% | H14: 43.4% | I14: 43.9% | J14: 44.5% | L14: 45.6% | M14: 46.1% | N14: 46.7% | O14: 47.2% | P14: 47.8% | Q14: 50.5% | R14: 53.3% | S14: 56.0%
B15: 50% | C15: 40.0% | D15: 42.5% | E15: 45.0% | F15: 47.5% | G15: 48.0% | H15: 48.5% | I15: 49.0% | J15: 49.5% | L15: 50.5% | M15: 51.0% | N15: 51.5% | O15: 52.0% | P15: 52.5% | Q15: 55.0% | R15: 57.5% | S15: 60.0%
B16: 60% | C16: 52.0% | D16: 54.0% | E16: 56.0% | F16: 58.0% | G16: 58.4% | H16: 58.8% | I16: 59.2% | J16: 59.6% | L16: 60.4% | M16: 60.8% | N16: 61.2% | O16: 61.6% | P16: 62.0% | Q16: 64.0% | R16: 66.0% | S16: 68.0%
B17: 70% | C17: 64.0% | D17: 65.5% | E17: 67.0% | F17: 68.5% | G17: 68.8% | H17: 69.1% | I17: 69.4% | J17: 69.7% | L17: 70.3% | M17: 70.6% | N17: 70.9% | O17: 71.2% | P17: 71.5% | Q17: 73.0% | R17: 74.5% | S17: 76.0%
B18: 80% | C18: 76.0% | D18: 77.0% | E18: 78.0% | F18: 79.0% | G18: 79.2% | H18: 79.4% | I18: 79.6% | J18: 79.8% | L18: 80.2% | M18: 80.4% | N18: 80.6% | O18: 80.8% | P18: 81.0% | Q18: 82.0% | R18: 83.0% | S18: 84.0%
B19: 90% | C19: 88.0% | D19: 88.5% | E19: 89.0% | F19: 89.5% | G19: 89.6% | H19: 89.7% | I19: 89.8% | J19: 89.9% | L19: 90.1% | M19: 90.2% | N19: 90.3% | O19: 90.4% | P19: 90.5% | Q19: 91.0% | R19: 91.5% | S19: 92.0%
B21: Evolution of profit in % of sales (in percentage points)
B23: Profit (in % of sales) before change | C23: Cost increase in % | L23: Cost decrease in %
C24: 20% | D24: 15% | E24: 10% | F24: 5% | G24: 4% | H24: 3% | I24: 2% | J24: 1% | K24: 0% | L24: -1% | M24: -2% | N24: -3% | O24: -4% | P24: -5% | Q24: -10% | R24: -15% | S24: -20%
B25: 5% | C25: =(1-$B25)*-C$24*100 -> -19 pts | D25: -14 pts | E25: -10 pts | F25: -5 pts | G25: -4 pts | H25: -3 pts | I25: -2 pts | J25: -1 pts | L25: =(1-$B25)*-L$24*100 -> +1 pts | M25: +2 pts | N25: +3 pts | O25: +4 pts | P25: +5 pts | Q25: +10 pts | R25: +14 pts | S25: +19 pts
B26: 10% | C26: -18 pts | D26: -14 pts | E26: -9 pts | F26: -5 pts | G26: -4 pts | H26: -3 pts | I26: -2 pts | J26: -1 pts | L26: +1 pts | M26: +2 pts | N26: +3 pts | O26: +4 pts | P26: +5 pts | Q26: +9 pts | R26: +14 pts | S26: +18 pts
B27: 15% | C27: =(1-$B27)*-C$24*100 -> -17 pts | D27: -13 pts | E27: -9 pts | F27: -4 pts | G27: -3 pts | H27: -3 pts | I27: -2 pts | J27: -1 pts | L27: +1 pts | M27: +2 pts | N27: +3 pts | O27: +3 pts | P27: +4 pts | Q27: +9 pts | R27: +13 pts | S27: +17 pts
B28: 20% | C28: -16 pts | D28: -12 pts | E28: -8 pts | F28: -4 pts | G28: -3 pts | H28: -2 pts | I28: -2 pts | J28: -1 pts | L28: +1 pts | M28: +2 pts | N28: +2 pts | O28: +3 pts | P28: +4 pts | Q28: +8 pts | R28: +12 pts | S28: +16 pts
B29: 25% | C29: -15 pts | D29: -11 pts | E29: -8 pts | F29: -4 pts | G29: -3 pts | H29: -2 pts | I29: -2 pts | J29: -1 pts | L29: +1 pts | M29: +2 pts | N29: +2 pts | O29: +3 pts | P29: +4 pts | Q29: +8 pts | R29: +11 pts | S29: +15 pts
B30: 30% | C30: -14 pts | D30: -11 pts | E30: -7 pts | F30: -4 pts | G30: -3 pts | H30: -2 pts | I30: -1 pts | J30: -1 pts | L30: +1 pts | M30: +1 pts | N30: +2 pts | O30: +3 pts | P30: +4 pts | Q30: +7 pts | R30: +11 pts | S30: +14 pts
B31: 35% | C31: -13 pts | D31: -10 pts | E31: -7 pts | F31: -3 pts | G31: -3 pts | H31: -2 pts | I31: -1 pts | J31: -1 pts | L31: +1 pts | M31: +1 pts | N31: +2 pts | O31: +3 pts | P31: +3 pts | Q31: +7 pts | R31: +10 pts | S31: +13 pts
B32: 40% | C32: -12 pts | D32: -9 pts | E32: -6 pts | F32: -3 pts | G32: -2 pts | H32: -2 pts | I32: -1 pts | J32: -1 pts | L32: +1 pts | M32: +1 pts | N32: +2 pts | O32: +2 pts | P32: +3 pts | Q32: +6 pts | R32: +9 pts | S32: +12 pts
B33: 45% | C33: -11 pts | D33: -8 pts | E33: -6 pts | F33: -3 pts | G33: -2 pts | H33: -2 pts | I33: -1 pts | J33: -1 pts | L33: +1 pts | M33: +1 pts | N33: +2 pts | O33: +2 pts | P33: +3 pts | Q33: +6 pts | R33: +8 pts | S33: +11 pts
B34: 50% | C34: -10 pts | D34: -8 pts | E34: -5 pts | F34: -3 pts | G34: -2 pts | H34: -2 pts | I34: -1 pts | J34: -1 pts | L34: +1 pts | M34: +1 pts | N34: +2 pts | O34: +2 pts | P34: +3 pts | Q34: +5 pts | R34: +8 pts | S34: +10 pts
B35: 60% | C35: -8 pts | D35: -6 pts | E35: -4 pts | F35: -2 pts | G35: -2 pts | H35: -1 pts | I35: -1 pts | J35: -0 pts | L35: +0 pts | M35: +1 pts | N35: +1 pts | O35: +2 pts | P35: +2 pts | Q35: +4 pts | R35: +6 pts | S35: +8 pts
B36: 70% | C36: -6 pts | D36: -5 pts | E36: -3 pts | F36: -2 pts | G36: -1 pts | H36: -1 pts | I36: -1 pts | J36: -0 pts | L36: +0 pts | M36: +1 pts | N36: +1 pts | O36: +1 pts | P36: +2 pts | Q36: +3 pts | R36: +5 pts | S36: +6 pts
B37: 80% | C37: -4 pts | D37: -3 pts | E37: -2 pts | F37: -1 pts | G37: -1 pts | H37: -1 pts | I37: -0 pts | J37: -0 pts | L37: +0 pts | M37: +0 pts | N37: +1 pts | O37: +1 pts | P37: +1 pts | Q37: +2 pts | R37: +3 pts | S37: +4 pts
B38: 90% | C38: -2 pts | D38: -2 pts | E38: -1 pts | F38: -1 pts | G38: -0 pts | H38: -0 pts | I38: -0 pts | J38: -0 pts | L38: +0 pts | M38: +0 pts | N38: +0 pts | O38: +0 pts | P38: +1 pts | Q38: +1 pts | R38: +2 pts | S38: +2 pts
